[Event "*** Titled Tuesday Blitz"]
[Site "Chess.com"]
[Date "2020.03.03"]
[Round "9"]
[White "Gahan-MG"]
[Black "Azeryahu"]
[Result "1/2-1/2"]
[WhiteElo "2549"]
[BlackElo "2807"]
[TimeControl "180+1"]
[EndTime "14:47:28 PST"]
[Termination "Game drawn by repetition"]

1. e4 {[%clk 0:03:00.9]} 1... e5 {[%clk 0:02:59.9]} 2. Nf3 {[%clk 0:02:59.9]}
2... Nc6 {[%clk 0:03:00.4]} 3. d4 {[%clk 0:02:58]} 3... exd4 {[%clk 0:02:59.3]}
4. Nxd4 {[%clk 0:02:58.9]} 4... Nf6 {[%clk 0:02:59.9]} 5. Nc3 {[%clk 0:02:58.6]}
5... Bb4 {[%clk 0:02:59.9]} 6. Nxc6 {[%clk 0:02:58.7]} 6... bxc6 {[%clk
0:03:00.8]} 7. Bd3 {[%clk 0:02:59.5]} 7... d5 {[%clk 0:03:01]} 8. exd5 {[%clk
0:03:00.4]} 8... O-O {[%clk 0:03:01.1]} 9. O-O {[%clk 0:03:01]} 9... cxd5 {[%clk
0:03:01.7]} 10. Bg5 {[%clk 0:03:01.2]} 10... Be6 {[%clk 0:03:01.5]} 11. Qf3
{[%clk 0:03:00.9]} 11... Rb8 {[%clk 0:03:00.4]} 12. h3 {[%clk 0:02:58.1]} 12...
h6 {[%clk 0:02:49.2]} 13. Bxf6 {[%clk 0:02:57.7]} 13... Qxf6 {[%clk 0:02:50.1]}
14. Qxf6 {[%clk 0:02:58]} 14... gxf6 {[%clk 0:02:51]} 15. Ne2 {[%clk 0:02:58]}
15... Bd6 {[%clk 0:02:49.9]} 16. b3 {[%clk 0:02:57.7]} 16... c5 {[%clk
0:02:46.4]} 17. Rad1 {[%clk 0:02:54.1]} 17... c4 {[%clk 0:02:38.6]} 18. Bxc4
{[%clk 0:02:50.6]} 18... dxc4 {[%clk 0:02:39.5]} 19. Rxd6 {[%clk 0:02:50.5]}
19... Rb6 {[%clk 0:02:14.4]} 20. Rfd1 {[%clk 0:02:49.2]} 20... Kg7 {[%clk
0:02:08]} 21. Nf4 {[%clk 0:02:45.8]} 21... Re8 {[%clk 0:01:50.9]} 22. Kh2 {[%clk
0:02:10.4]} 22... Bf5 {[%clk 0:01:32.4]} 23. Rxb6 {[%clk 0:01:59.5]} 23... axb6
{[%clk 0:01:31.7]} 24. bxc4 {[%clk 0:01:59]} 24... Re4 {[%clk 0:01:11.5]} 25.
Nd5 {[%clk 0:01:55.8]} 25... Rxc4 {[%clk 0:01:10.8]} 26. Ne3 {[%clk 0:01:45.7]}
26... Rc5 {[%clk 0:01:10.7]} 27. Rd6 {[%clk 0:01:35]} 27... Be6 {[%clk
0:00:51.9]} 28. a4 {[%clk 0:01:18.8]} 28... Ra5 {[%clk 0:00:44.9]} 29. Rxb6
{[%clk 0:01:16.6]} 29... Rxa4 {[%clk 0:00:45.5]} 30. Rc6 {[%clk 0:01:12.7]}
30... f5 {[%clk 0:00:43.8]} 31. f4 {[%clk 0:01:06.9]} 31... Rxf4 {[%clk
0:00:41.9]} 32. Kg3 {[%clk 0:01:01.9]} 32... Re4 {[%clk 0:00:42]} 33. Kf3 {[%clk
0:01:00.5]} 33... Rd4 {[%clk 0:00:41.4]} 34. g3 {[%clk 0:00:55.9]} 34... Kf6
{[%clk 0:00:31]} 35. Rc5 {[%clk 0:00:55.1]} 35... Ra4 {[%clk 0:00:29.4]} 36. h4
{[%clk 0:00:54.4]} 36... Ra1 {[%clk 0:00:27.8]} 37. Rc6 {[%clk 0:00:44.3]} 37...
Ra3 {[%clk 0:00:26.2]} 38. c3 {[%clk 0:00:42.6]} 38... Ra4 {[%clk 0:00:23]} 39.
Nd5+ {[%clk 0:00:38.8]} 39... Ke5 {[%clk 0:00:20.9]} 40. Nf4 {[%clk 0:00:39.1]}
40... Ra1 {[%clk 0:00:18.3]} 41. Rc5+ {[%clk 0:00:36.6]} 41... Kf6 {[%clk
0:00:18.3]} 42. Rc6 {[%clk 0:00:31.5]} 42... Ke5 {[%clk 0:00:18.2]} 43. Rc5+
{[%clk 0:00:27.2]} 43... Kd6 {[%clk 0:00:17.4]} 44. Nxe6 {[%clk 0:00:18.4]}
44... fxe6 {[%clk 0:00:17.1]} 45. Rc8 {[%clk 0:00:18.6]} 45... Ke5 {[%clk
0:00:14.8]} 46. Rc5+ {[%clk 0:00:16.3]} 46... Kf6 {[%clk 0:00:14.2]} 47. Rc6
{[%clk 0:00:16.5]} 47... Rf1+ {[%clk 0:00:13.2]} 48. Kg2 {[%clk 0:00:16.5]}
48... Re1 {[%clk 0:00:12.1]} 49. Kf2 {[%clk 0:00:16.6]} 49... Re4 {[%clk
0:00:12.4]} 50. Kf3 {[%clk 0:00:16.9]} 50... Ra4 {[%clk 0:00:10.8]} 51. Rc8
{[%clk 0:00:16.1]} 51... Ke5 {[%clk 0:00:07.7]} 52. Rc5+ {[%clk 0:00:15.9]}
52... Kf6 {[%clk 0:00:07.8]} 53. Rc8 {[%clk 0:00:16]} 53... Re4 {[%clk
0:00:06.5]} 54. Rc7 {[%clk 0:00:13.2]} 54... Re1 {[%clk 0:00:05.1]} 55. Rc8
{[%clk 0:00:12.8]} 55... Rf1+ {[%clk 0:00:05.4]} 56. Ke2 {[%clk 0:00:12.8]}
56... Rg1 {[%clk 0:00:05.4]} 57. Kf2 {[%clk 0:00:13]} 57... Ra1 {[%clk
0:00:06.3]} 58. Kf3 {[%clk 0:00:13]} 58... e5 {[%clk 0:00:06.2]} 59. Rc6+ {[%clk
0:00:12.9]} 59... Kg7 {[%clk 0:00:06.4]} 60. Rc7+ {[%clk 0:00:13.2]} 60... Kg6
{[%clk 0:00:06.8]} 61. Rc6+ {[%clk 0:00:13.6]} 61... Kg7 {[%clk 0:00:04.4]} 62.
Rc7+ {[%clk 0:00:13.1]} 62... Kg6 {[%clk 0:00:04.6]} 63. Rc6+ {[%clk 0:00:13.6]}
63... Kg7 {[%clk 0:00:05.1]} 1/2-1/2

[Event "*** Titled Tuesday Blitz"]
[Site "Chess.com"]
[Date "2020.03.03"]
[Round "9"]
[White "IgorBjelobrk"]
[Black "MartinMatthiesen"]
[Result "1-0"]
[WhiteElo "2711"]
[BlackElo "2593"]
[TimeControl "180+1"]
[EndTime "14:47:28 PST"]
[Termination "IgorBjelobrk won on time"]

1. d4 {[%clk 0:03:00.9]} 1... Nf6 {[%clk 0:02:59.2]} 2. c4 {[%clk 0:03:01.1]}
2... e6 {[%clk 0:02:59.5]} 3. g3 {[%clk 0:03:00.1]} 3... c5 {[%clk 0:02:58.5]}
4. d5 {[%clk 0:02:59.4]} 4... exd5 {[%clk 0:02:58.7]} 5. cxd5 {[%clk 0:03:00.3]}
5... d6 {[%clk 0:02:58.7]} 6. Nc3 {[%clk 0:03:00.7]} 6... g6 {[%clk 0:02:59]} 7.
Nf3 {[%clk 0:03:01.3]} 7... Bg7 {[%clk 0:02:59.4]} 8. Bg2 {[%clk 0:03:02.2]}
8... O-O {[%clk 0:02:59.6]} 9. O-O {[%clk 0:03:03.1]} 9... Re8 {[%clk
0:02:59.9]} 10. Nd2 {[%clk 0:03:02.8]} 10... a6 {[%clk 0:02:57.1]} 11. a4 {[%clk
0:03:02.7]} 11... Nbd7 {[%clk 0:02:55.7]} 12. Ra2 {[%clk 0:03:02.4]} 12... Rb8
{[%clk 0:02:50]} 13. a5 {[%clk 0:03:02.5]} 13... b5 {[%clk 0:02:34.5]} 14. axb6
{[%clk 0:03:02.3]} 14... Nxb6 {[%clk 0:02:34.5]} 15. b3 {[%clk 0:03:02.5]} 15...
Bb7 {[%clk 0:02:19.3]} 16. Nc4 {[%clk 0:03:01.3]} 16... Nxc4 {[%clk 0:02:14.7]}
17. bxc4 {[%clk 0:03:02.2]} 17... Nd7 {[%clk 0:02:15.1]} 18. Ne4 {[%clk
0:03:00.1]} 18... Ne5 {[%clk 0:02:12]} 19. Qc2 {[%clk 0:02:59.3]} 19... Bc8
{[%clk 0:02:08.5]} 20. Bg5 {[%clk 0:02:54.8]} 20... f6 {[%clk 0:02:04.4]} 21.
Bd2 {[%clk 0:02:53.5]} 21... Bf5 {[%clk 0:01:42.3]} 22. Rxa6 {[%clk 0:02:49.8]}
22... Nf7 {[%clk 0:01:37.7]} 23. Ra7 {[%clk 0:02:19.8]} 23... Qb6 {[%clk
0:01:28.4]} 24. Rfa1 {[%clk 0:02:14.6]} 24... Bxe4 {[%clk 0:01:05.7]} 25. Bxe4
{[%clk 0:02:13.5]} 25... f5 {[%clk 0:01:05.8]} 26. R1a6 {[%clk 0:02:09.7]} 26...
Qb2 {[%clk 0:01:00.7]} 27. Ra2 {[%clk 0:01:51.5]} 27... Qxc2 {[%clk 0:00:50.6]}
28. Bxc2 {[%clk 0:01:52.4]} 28... Rxe2 {[%clk 0:00:50.9]} 29. Ba5 {[%clk
0:01:34.8]} 29... Bd4 {[%clk 0:00:27]} 30. Bb3 {[%clk 0:01:13.8]} 30... Rxa2
{[%clk 0:00:20.1]} 31. Bxa2 {[%clk 0:01:14.7]} 31... Rb2 {[%clk 0:00:20.6]} 32.
Be1 {[%clk 0:01:14.7]} 32... Ne5 {[%clk 0:00:18.4]} 33. Ra3 {[%clk 0:01:13.1]}
33... Nd3 {[%clk 0:00:14.2]} 34. Rxd3 {[%clk 0:01:12.4]} 34... Rxa2 {[%clk
0:00:14.7]} 35. Rb3 {[%clk 0:01:03.5]} 35... Rc2 {[%clk 0:00:14.6]} 36. Rb6
{[%clk 0:01:02.2]} 36... Be5 {[%clk 0:00:14.6]} 37. f4 {[%clk 0:00:59.6]} 37...
Bd4+ {[%clk 0:00:14.8]} 38. Kf1 {[%clk 0:00:59.9]} 38... Rxc4 {[%clk 0:00:14.9]}
39. Rxd6 {[%clk 0:00:59.4]} 39... Rc1 {[%clk 0:00:14.9]} 40. Ke2 {[%clk
0:00:58.7]} 40... Rc2+ {[%clk 0:00:14.8]} 41. Bd2 {[%clk 0:00:40.8]} 41... c4
{[%clk 0:00:12.1]} 42. Kd1 {[%clk 0:00:39.9]} 42... Ra2 {[%clk 0:00:12.1]} 43.
Rc6 {[%clk 0:00:39.2]} 43... Ra1+ {[%clk 0:00:11.7]} 44. Kc2 {[%clk 0:00:38.6]}
44... Ra2+ {[%clk 0:00:11.5]} 45. Kd1 {[%clk 0:00:38.8]} 45... Ra4 {[%clk
0:00:11.3]} 46. d6 {[%clk 0:00:33.5]} 46... c3 {[%clk 0:00:09.1]} 47. d7 {[%clk
0:00:29.5]} 47... Ra1+ {[%clk 0:00:06]} 48. Ke2 {[%clk 0:00:29]} 48... Bf6
{[%clk 0:00:06.3]} 49. Bxc3 {[%clk 0:00:28.1]} 49... Ra2+ {[%clk 0:00:05.8]} 50.
Kd3 {[%clk 0:00:28.2]} 50... Be7 {[%clk 0:00:05.3]} 51. Rc8+ {[%clk 0:00:26.2]}
51... Kf7 {[%clk 0:00:05.5]} 52. d8=Q {[%clk 0:00:26.3]} 52... Bxd8 {[%clk
0:00:05.8]} 53. Rxd8 {[%clk 0:00:27.2]} 53... Rxh2 {[%clk 0:00:06.4]} 54. Rd7+
{[%clk 0:00:24.3]} 54... Ke6 {[%clk 0:00:05.6]} 55. Rg7 {[%clk 0:00:22]} 55...
Rh3 {[%clk 0:00:05.1]} 56. Be1 {[%clk 0:00:21.8]} 56... Kf6 {[%clk 0:00:05.5]}
57. Ra7 {[%clk 0:00:21.2]} 57... h5 {[%clk 0:00:05.9]} 58. Ke2 {[%clk
0:00:20.6]} 58... Rh2+ {[%clk 0:00:04.8]} 59. Bf2 {[%clk 0:00:20.7]} 59... Rh1
{[%clk 0:00:03.6]} 60. Bd4+ {[%clk 0:00:18.6]} 60... Ke6 {[%clk 0:00:03.3]} 61.
Ra6+ {[%clk 0:00:18.9]} 61... Kd5 {[%clk 0:00:03.6]} 62. Bf2 {[%clk 0:00:18.4]}
1-0

[Event "*** Titled Tuesday Blitz"]
[Site "Chess.com"]
[Date "2020.03.03"]
[Round "9"]
[White "MaxLeto"]
[Black "RemcoSpr"]
[Result "1-0"]
[WhiteElo "2392"]
[BlackElo "2240"]
[TimeControl "180+1"]
[EndTime "14:47:38 PST"]
[Termination "MaxLeto won by checkmate"]

1. g4 {[%clk 0:03:00.9]} 1... d5 {[%clk 0:02:59.4]} 2. g5 {[%clk 0:03:00.9]}
2... e5 {[%clk 0:02:58.7]} 3. h4 {[%clk 0:03:01.2]} 3... Bc5 {[%clk 0:02:57.7]}
4. c3 {[%clk 0:03:00.3]} 4... Nc6 {[%clk 0:02:57]} 5. Bg2 {[%clk 0:02:58.1]}
5... Nge7 {[%clk 0:02:56.2]} 6. b4 {[%clk 0:02:48.9]} 6... Bb6 {[%clk 0:02:55]}
7. a4 {[%clk 0:02:47.3]} 7... a5 {[%clk 0:02:54.5]} 8. b5 {[%clk 0:02:47.4]}
8... Nb8 {[%clk 0:02:54.5]} 9. Ba3 {[%clk 0:02:39.3]} 9... Ng6 {[%clk
0:02:52.5]} 10. e3 {[%clk 0:02:36.5]} 10... e4 {[%clk 0:02:49.6]} 11. d4 {[%clk
0:02:30.3]} 11... exd3 {[%clk 0:02:36.8]} 12. Qxd3 {[%clk 0:02:30.1]} 12... Be6
{[%clk 0:02:36.9]} 13. f4 {[%clk 0:02:22.2]} 13... Qd7 {[%clk 0:02:35.8]} 14.
Nd2 {[%clk 0:01:39.7]} 14... c5 {[%clk 0:02:25.2]} 15. c4 {[%clk 0:01:24]} 15...
d4 {[%clk 0:01:59.6]} 16. h5 {[%clk 0:01:13.4]} 16... Ne7 {[%clk 0:01:56.7]} 17.
e4 {[%clk 0:01:01.7]} 17... Bg4 {[%clk 0:01:37.6]} 18. Ngf3 {[%clk 0:01:00.3]}
18... Bxf3 {[%clk 0:01:25.1]} 19. Nxf3 {[%clk 0:00:58]} 19... Qg4 {[%clk
0:01:23.7]} 20. Qd2 {[%clk 0:00:48.7]} 20... Bc7 {[%clk 0:01:22.4]} 21. Rh4
{[%clk 0:00:37.5]} 21... Qe6 {[%clk 0:01:21.8]} 22. Qd3 {[%clk 0:00:29.6]} 22...
f5 {[%clk 0:01:15.5]} 23. e5 {[%clk 0:00:15.1]} 23... Nd7 {[%clk 0:01:12.7]} 24.
O-O-O {[%clk 0:00:13.7]} 24... Rc8 {[%clk 0:01:02.9]} 25. Ng1 {[%clk 0:00:12.4]}
25... Nb6 {[%clk 0:00:45.4]} 26. Bxb7 {[%clk 0:00:09.8]} 26... Rb8 {[%clk
0:00:42.2]} 27. Bg2 {[%clk 0:00:05]} 27... Nxc4 {[%clk 0:00:35.1]} 28. Qb3
{[%clk 0:00:03.8]} 28... Kf7 {[%clk 0:00:31.9]} 29. g6+ {[%clk 0:00:01.8]} 29...
hxg6 {[%clk 0:00:30.1]} 30. hxg6+ {[%clk 0:00:02.7]} 30... Nxg6 {[%clk 0:00:31]}
31. Rxh8 {[%clk 0:00:03.5]} 31... Rxh8 {[%clk 0:00:30.7]} 32. Nh3 {[%clk
0:00:04.4]} 32... Rxh3 {[%clk 0:00:27.8]} 33. Bxh3 {[%clk 0:00:04.6]} 33... Nxf4
{[%clk 0:00:27.8]} 34. Bxf5 {[%clk 0:00:04.2]} 34... Qxf5 {[%clk 0:00:25.6]} 35.
Qxc4+ {[%clk 0:00:04.7]} 35... Ne6 {[%clk 0:00:25.7]} 36. Rf1 {[%clk 0:00:04.6]}
36... g6 {[%clk 0:00:23.1]} 37. Rxf5+ {[%clk 0:00:04.1]} 37... gxf5 {[%clk
0:00:24]} 38. Bxc5 {[%clk 0:00:05]} 38... Bxe5 {[%clk 0:00:23.7]} 39. b6 {[%clk
0:00:04.5]} 39... d3 {[%clk 0:00:20.2]} 40. b7 {[%clk 0:00:03.8]} 40... Bf4+
{[%clk 0:00:20.2]} 41. Kd1 {[%clk 0:00:03.3]} 41... Kf6 {[%clk 0:00:18.5]} 42.
Bd4+ {[%clk 0:00:02.7]} 42... Ke7 {[%clk 0:00:17]} 43. Qxd3 {[%clk 0:00:03]}
43... Bb8 {[%clk 0:00:10.9]} 44. Bc3 {[%clk 0:00:02.4]} 44... Nc5 {[%clk
0:00:10.5]} 45. Qc4 {[%clk 0:00:02.5]} 45... Nxb7 {[%clk 0:00:09.5]} 46. Qb5
{[%clk 0:00:03]} 46... Nd6 {[%clk 0:00:09.3]} 47. Qxb8 {[%clk 0:00:03.2]} 47...
Ne4 {[%clk 0:00:09.6]} 48. Qa7+ {[%clk 0:00:03.7]} 48... Ke6 {[%clk 0:00:09.5]}
49. Bxa5 {[%clk 0:00:04.6]} 49... Kd5 {[%clk 0:00:09]} 50. Kc2 {[%clk
0:00:04.9]} 50... f4 {[%clk 0:00:09]} 51. Qa8+ {[%clk 0:00:05.8]} 51... Ke5
{[%clk 0:00:09]} 52. Qe8+ {[%clk 0:00:06.2]} 52... Kf5 {[%clk 0:00:08.9]} 53.
Qb5+ {[%clk 0:00:06.5]} 53... Kg4 {[%clk 0:00:07.6]} 54. Bd2 {[%clk 0:00:07.4]}
54... f3 {[%clk 0:00:07]} 55. Qd3 {[%clk 0:00:07.4]} 55... Ng3 {[%clk
0:00:06.6]} 56. Qd4+ {[%clk 0:00:07.5]} 56... Kh3 {[%clk 0:00:06.8]} 57. Qf4
{[%clk 0:00:08.4]} 57... Kg2 {[%clk 0:00:06.6]} 58. Be3 {[%clk 0:00:08.2]} 58...
Nf1 {[%clk 0:00:05.6]} 59. Qg4+ {[%clk 0:00:08]} 59... Kh2 {[%clk 0:00:05.6]}
60. Qxf3 {[%clk 0:00:07.3]} 60... Ng3 {[%clk 0:00:05.5]} 61. Bf4 {[%clk
0:00:06.6]} 61... Kg1 {[%clk 0:00:05.3]} 62. Qxg3+ {[%clk 0:00:06.8]} 62... Kh1
{[%clk 0:00:05.7]} 63. Qh2# {[%clk 0:00:06.8]} 1-0

[Event "*** Titled Tuesday Blitz"]
[Site "Chess.com"]
[Date "2020.03.03"]
[Round "9"]
[White "WiktoriaPOL"]
[Black "SoltaniciR"]
[Result "1-0"]
[WhiteElo "2385"]
[BlackElo "2507"]
[TimeControl "180+1"]
[EndTime "14:47:48 PST"]
[Termination "WiktoriaPOL won by resignation"]

1. c4 {[%clk 0:03:00.9]} 1... c5 {[%clk 0:02:42.3]} 2. Nf3 {[%clk 0:03:00.1]}
2... Nf6 {[%clk 0:02:40.7]} 3. Nc3 {[%clk 0:02:59.5]} 3... e6 {[%clk 0:02:40.2]}
4. d4 {[%clk 0:02:56]} 4... cxd4 {[%clk 0:02:39.7]} 5. Nxd4 {[%clk 0:02:55.1]}
5... Qc7 {[%clk 0:02:39.2]} 6. e4 {[%clk 0:02:51.6]} 6... a6 {[%clk 0:02:39.3]}
7. Be3 {[%clk 0:02:48.5]} 7... b6 {[%clk 0:02:39.3]} 8. Be2 {[%clk 0:02:44]}
8... d6 {[%clk 0:02:39]} 9. Qd2 {[%clk 0:02:43.3]} 9... Bb7 {[%clk 0:02:39]} 10.
f3 {[%clk 0:02:42.5]} 10... Be7 {[%clk 0:02:38.7]} 11. O-O {[%clk 0:02:41.1]}
11... O-O {[%clk 0:02:38.1]} 12. Kh1 {[%clk 0:02:32.6]} 12... Rd8 {[%clk
0:02:30]} 13. Rfd1 {[%clk 0:02:31.2]} 13... Nbd7 {[%clk 0:02:28.1]} 14. Rac1
{[%clk 0:02:29.1]} 14... Rac8 {[%clk 0:02:26.9]} 15. b4 {[%clk 0:02:28.4]} 15...
Re8 {[%clk 0:02:26.7]} 16. Nb3 {[%clk 0:02:22.1]} 16... Qb8 {[%clk 0:02:24.7]}
17. Na4 {[%clk 0:02:18.7]} 17... Ba8 {[%clk 0:02:13.1]} 18. Bf4 {[%clk
0:01:57.5]} 18... Ne5 {[%clk 0:02:04.8]} 19. Be3 {[%clk 0:01:52.1]} 19... Ned7
{[%clk 0:02:03.7]} 20. Bf4 {[%clk 0:01:31.4]} 20... Ne5 {[%clk 0:02:03]} 21. Qe3
{[%clk 0:01:27.7]} 21... Bd8 {[%clk 0:01:25.7]} 22. c5 {[%clk 0:01:11]} 22... b5
{[%clk 0:01:22.8]} 23. Nb2 {[%clk 0:00:56]} 23... dxc5 {[%clk 0:01:12.6]} 24.
Nxc5 {[%clk 0:00:56]} 24... Bb6 {[%clk 0:00:52]} 25. Nbd3 {[%clk 0:00:44.4]}
25... Nc4 {[%clk 0:00:49.6]} 26. Rxc4 {[%clk 0:00:40.3]} 26... bxc4 {[%clk
0:00:49.7]} 27. Bxb8 {[%clk 0:00:39.9]} 27... cxd3 {[%clk 0:00:49.8]} 28. Qxd3
{[%clk 0:00:38.5]} 28... Rxb8 {[%clk 0:00:47.9]} 29. Nxa6 {[%clk 0:00:35.6]}
29... Rbc8 {[%clk 0:00:44.1]} 30. Nc5 {[%clk 0:00:21]} 30... Bxc5 {[%clk
0:00:41.7]} 31. bxc5 {[%clk 0:00:21.1]} 31... Rxc5 {[%clk 0:00:42.5]} 32. Qa3
{[%clk 0:00:20.8]} 32... Rc2 {[%clk 0:00:36.7]} 33. Bd3 {[%clk 0:00:19]} 33...
Rcc8 {[%clk 0:00:35]} 34. h3 {[%clk 0:00:18]} 34... Nh5 {[%clk 0:00:33.8]} 35.
Kh2 {[%clk 0:00:17.2]} 35... Nf4 {[%clk 0:00:31.9]} 36. Bb5 {[%clk 0:00:17.4]}
36... Red8 {[%clk 0:00:27]} 37. Rxd8+ {[%clk 0:00:16.9]} 37... Rxd8 {[%clk
0:00:27.9]} 38. Qe3 {[%clk 0:00:13.7]} 38... e5 {[%clk 0:00:26.5]} 39. Qb6
{[%clk 0:00:13.1]} 39... Rf8 {[%clk 0:00:21.4]} 40. Qc7 {[%clk 0:00:13]} 40...
Ng6 {[%clk 0:00:16.4]} 41. Qd6 {[%clk 0:00:12.8]} 41... h5 {[%clk 0:00:14.5]}
42. g3 {[%clk 0:00:12.4]} 42... h4 {[%clk 0:00:14.2]} 43. gxh4 {[%clk
0:00:12.2]} 43... Nxh4 {[%clk 0:00:13]} 44. Kg3 {[%clk 0:00:11]} 44... Ng6
{[%clk 0:00:12.7]} 45. h4 {[%clk 0:00:11.1]} 45... Rc8 {[%clk 0:00:08.5]} 46. h5
{[%clk 0:00:09.9]} 46... Nf4 {[%clk 0:00:08.4]} 47. Qxe5 {[%clk 0:00:08.8]}
47... Ne6 {[%clk 0:00:08.5]} 48. Qd6 {[%clk 0:00:08]} 48... Kh7 {[%clk
0:00:05.2]} 49. Bd7 {[%clk 0:00:08]} 49... Rd8 {[%clk 0:00:03.2]} 50. Qe7 {[%clk
0:00:07.2]} 50... Rb8 {[%clk 0:00:01.9]} 51. Bxe6 {[%clk 0:00:07.3]} 51... fxe6
{[%clk 0:00:02.8]} 52. Qxe6 {[%clk 0:00:07.7]} 52... Bb7 {[%clk 0:00:03.3]} 53.
Qf5+ {[%clk 0:00:07.5]} 53... Kh8 {[%clk 0:00:02.5]} 54. Qe5 {[%clk 0:00:07.7]}
54... Rf8 {[%clk 0:00:01.6]} 55. h6 {[%clk 0:00:07.7]} 55... Rf6 {[%clk
0:00:02]} 56. Qe7 {[%clk 0:00:06.6]} 56... Rg6+ {[%clk 0:00:01.2]} 57. Kf4
{[%clk 0:00:05.4]} 57... Bxe4 {[%clk 0:00:01.9]} 58. Qxe4 {[%clk 0:00:04.4]}
58... Rxh6 {[%clk 0:00:01.5]} 59. Qe8+ {[%clk 0:00:04.5]} 59... Kh7 {[%clk
0:00:02.4]} 60. a4 {[%clk 0:00:04.4]} 60... Rh4+ {[%clk 0:00:02.1]} 61. Kg5
{[%clk 0:00:04.5]} 61... Rb4 {[%clk 0:00:02.9]} 62. a5 {[%clk 0:00:04]} 62...
Rb3 {[%clk 0:00:02]} 63. Qh5+ {[%clk 0:00:01.8]} 63... Kg8 {[%clk 0:00:01.5]}
64. Qe8+ {[%clk 0:00:01.9]} 64... Kh7 {[%clk 0:00:01.8]} 65. a6 {[%clk
0:00:02.4]} 65... Ra3 {[%clk 0:00:01.4]} 66. Qe6 {[%clk 0:00:02]} 66... Ra5+
{[%clk 0:00:02.3]} 67. Kf4 {[%clk 0:00:01.5]} 67... Kh8 {[%clk 0:00:03.2]} 68.
Kg3 {[%clk 0:00:01.7]} 68... Ra4 {[%clk 0:00:03.7]} 69. Qd6 {[%clk 0:00:01.8]}
69... Ra5 {[%clk 0:00:04.1]} 70. Qd8+ {[%clk 0:00:01.9]} 70... Kh7 {[%clk
0:00:03.5]} 71. Qxa5 {[%clk 0:00:02.8]} 1-0